bitfinex/quotes_ETHUSD_20241129
["timestamp","ask_amount","ask_price","bid_price","bid_amount"]
[1732868731756,0.1533432,3567.5,3567.2,2.80326]
[1732868731954,0.1533432,3567.5,3567.3,3.158596]
[1732868733317,0.1533432,3567.5,3567.4,0.7741]
[1732868733518,0.1533432,3567.5,3567.4,3.57726]
[1732868734968,0.1533432,3567.5,3567.4,3.60528786]
[1732868735264,0.1533432,3567.5,3567.3,6.15635662]
[1732868735265,0.7556,3568.8,3568.1,0.7728]
[1732868735613,0.7556,3568.8,3568.1,3.57538]
[1732868735614,3.55766,3568.8,3568.1,3.57538]
[1732868735818,2.8019,3569.0,3568.1,2.27168031]
[1732868736252,0.8013,3569.1,3568.1,3.5754]
[1732868736556,2.80199,3568.9,3568.1,0.7728]
[1732868736758,2.8019,3569.0,3568.2,0.657553]
[1732868737259,2.80207,3568.8,3568.2,0.657553]
[1732868737469,2.80214,3568.7,3568.1,0.7728]
[1732868740378,0.7785,3568.8,3567.6,0.7931]
[1732868740661,2.80252,3568.3,3567.6,0.7931]
[1732868741025,0.55,3568.7,3567.6,0.7931]
[1732868741220,2.80286,3567.8,3567.0,0.7931]
[1732868741545,2.80286,3567.8,3567.1,0.66868889]
[1732868741864,0.7785,3568.5,3567.1,0.66868889]
[1732868742165,2.80301,3567.6,3567.1,0.66868889]
[1732868743160,2.80291,3567.8,3567.1,0.66868889]
[1732868743368,2.80284,3567.9,3567.1,0.66868889]
[1732868743520,0.8155,3568.0,3567.2,0.78385049]
[1732868743723,0.8155,3568.0,3567.1,0.66868889]
[1732868744463,2.80307,3567.6,3567.1,0.66868889]
[1732868744968,2.8031,3567.5,3567.1,0.66868889]
[1732868745121,2.80293,3567.7,3567.1,0.66868889]
[1732868745327,2.80326,3567.3,3567.1,0.66868889]
[1732868745532,2.80333,3567.2,3567.0,0.7931]
[1732868746120,2.80316,3567.4,3567.0,0.7931]
[1732868747770,2.80333,3567.2,3566.3,3.58041]
[1732868748076,2.80333,3567.2,3566.6,0.7764]
[1732868748232,2.80313,3567.5,3566.7,3.21826659]
[1732868748571,2.80318,3567.4,3566.8,0.7756]
[1732868748770,2.80328,3567.3,3566.8,0.7756]
[1732868748933,2.80332,3567.2,3566.8,0.7756]
[1732868750096,2.803,3567.6,3566.8,0.7756]
[1732868750377,2.80327,3567.3,3566.8,0.7756]
[1732868751234,2.80327,3567.3,3567.1,0.55630847]
[1732868751835,2.80308,3567.5,3567.1,0.55630847]
[1732868752036,2.80293,3567.7,3567.1,0.55630847]
[1732868752291,2.80293,3567.7,3567.3,0.7806]
[1732868753338,2.80277,3567.9,3567.3,0.7806]
[1732868754495,2.80269,3568.0,3567.3,0.7806]
[1732868754674,2.80261,3568.1,3567.3,0.7806]
[1732868754675,2.80283,3567.9,3567.3,0.7806]
[1732868754859,2.80289,3567.8,3567.3,0.7806]
[1732868755057,2.80289,3567.8,3567.4,0.44762133]
[1732868756357,2.80273,3568.0,3567.4,0.44762133]
[1732868756558,2.80262,3568.1,3567.4,0.44762133]
[1732868756765,2.80262,3568.1,3567.5,0.0280281]
[1732868757040,2.80262,3568.1,3567.4,3.25075133]
[1732868757242,2.80262,3568.1,3567.5,0.43673362]
[1732868757465,2.80269,3568.0,3567.5,0.43673362]
[1732868757688,2.80271,3568.0,3567.3,0.7806]
[1732868757889,2.80284,3567.8,3567.3,0.7806]
[1732868758088,2.80301,3567.6,3567.2,0.33598485]
[1732868758308,2.80288,3567.8,3567.2,0.33598485]
[1732868758611,2.80288,3567.8,3567.4,0.7545]
[1732868758811,2.80294,3567.7,3567.4,0.7545]
[1732868760620,2.80294,3567.7,3567.5,0.57392045]
[1732868760924,2.803,3567.6,3567.5,0.57392045]
[1732868761081,2.803,3567.6,3567.4,0.7545]
[1732868761285,2.803,3567.6,3567.4,0.89494233]
[1732868764231,2.80296,3567.7,3567.0,2.84748059]
[1732868764518,2.80308,3567.5,3567.0,2.84748059]
[1732868764719,2.80296,3567.7,3567.0,2.84748059]
[1732868764720,2.80317,3567.4,3567.0,1.3524465]
[1732868765018,2.80317,3567.4,3567.0,2.06806115]
[1732868765499,0.8065,3567.5,3567.0,2.06806115]
[1732868765695,3.60961,3567.5,3567.0,2.06806115]
[1732868766614,2.80311,3567.5,3567.0,2.06806115]
[1732868768098,2.80318,3567.4,3567.0,2.06806115]
[1732868768295,2.80318,3567.4,3567.0,1.3524465]
[1732868768521,0.8062,3567.8,3567.0,1.3524465]
[1732868768706,2.80332,3567.2,3567.0,0.8012]
[1732868769098,2.80332,3567.2,3566.7,2.28203409]
[1732868769514,2.80332,3567.2,3566.8,0.55078312]
[1732868769699,2.80332,3567.2,3566.9,0.28328172]
[1732868770530,5.60627,3567.5,3566.9,0.28328172]
[1732868770739,2.80313,3567.5,3566.9,1.77831581]
[1732868770895,2.803,3567.6,3567.1,1.49503409]
[1732868771094,2.803,3567.6,3567.1,2.08861029]
[1732868771496,2.80309,3567.5,3567.1,2.08861029]
[1732868771844,2.80292,3567.7,3567.1,4.89200029]
[1732868772194,3.5596,3568.0,3567.1,2.08861029]
[1732868772400,2.80291,3567.8,3567.1,2.08861029]
[1732868772601,2.80273,3568.0,3567.3,0.8116]
[1732868772837,2.80273,3568.0,3567.4,1.49503409]
[1732868773040,2.80254,3568.2,3567.4,4.29818409]
[1732868773359,2.80262,3568.1,3567.4,4.29818409]
[1732868773550,2.80271,3568.0,3567.3,0.8116]
[1732868773755,2.80271,3568.0,3567.4,0.51099441]
[1732868774772,2.80283,3567.9,3567.4,0.51099441]
[1732868776163,2.80261,3568.1,3567.4,0.51099441]
[1732868776339,2.80269,3568.0,3567.4,0.51099441]
[1732868776540,5.60543,3568.0,3567.4,0.51099441]
[1732868776863,2.80285,3567.8,3567.5,0.56208585]
[1732868777373,2.80285,3567.8,3567.3,0.8116]
[1732868778310,2.80296,3567.7,3567.3,0.8116]
[1732868778778,2.80285,3567.8,3567.3,0.8116]
[1732868778983,2.80308,3567.5,3567.0,0.7655]
[1732868779306,2.80348,3567.0,3566.6,0.7655]
[1732868779603,2.80348,3567.0,3566.6,1.27195441]
[1732868780312,2.80363,3566.8,3566.6,0.7655]
[1732868780827,2.80348,3567.0,3566.6,0.7655]
[1732868782189,2.80351,3567.0,3566.6,0.7655]
[1732868782386,3.55802,3567.2,3566.6,0.7655]
[1732868782710,2.80356,3566.9,3566.6,0.7655]
[1732868783915,2.80356,3566.9,3566.7,0.55188982]
[1732868787995,2.80356,3566.9,3566.6,0.7655]
[1732868788222,2.80367,3566.8,3566.6,0.7655]
[1732868788394,2.80377,3566.7,3566.1,0.8018]
[1732868788594,2.80377,3566.7,3566.2,0.360605]
[1732868789305,2.80381,3566.6,3566.2,0.360605]
[1732868790221,0.7547,3567.2,3566.2,0.360605]
[1732868790405,2.80374,3566.7,3566.2,0.360605]
[1732868790606,2.80379,3566.6,3566.3,0.3966605]
[1732868790840,2.80379,3566.6,3566.1,0.8018]
[1732868791713,2.80366,3566.8,3566.1,0.8018]
[1732868792095,2.8034,3567.1,3566.4,2.80394]
[1732868792293,0.7943,3567.5,3566.6,3.61246]
[1732868792294,2.80328,3567.3,3566.6,3.61246]
[1732868792501,2.80328,3567.3,3566.7,3.4770663]
[1732868792808,2.80332,3567.2,3566.7,0.6733663]
[1732868793019,0.7943,3567.5,3566.7,0.6733663]
[1732868793206,3.59738,3567.5,3566.7,0.6733663]
[1732868793543,2.80337,3567.2,3566.7,0.6733663]
[1732868793697,2.80337,3567.2,3566.8,0.14820663]
[1732868794140,2.80348,3567.0,3566.7,0.6733663]
[1732868794444,2.80317,3567.4,3566.6,0.8087]
[1732868794597,1.1750784,3567.9,3566.8,0.7883]
[1732868794797,2.80285,3567.8,3567.1,0.7883]
[1732868794998,1.1750784,3568.0,3567.1,0.7883]
[1732868795219,1.1750784,3568.0,3567.2,2.8313297]
[1732868795440,2.80268,3568.1,3567.3,0.95162653]
[1732868795640,2.80255,3568.2,3567.3,0.95162653]
[1732868795848,1.1750784,3568.4,3567.3,0.95162653]
[1732868795849,1.1750784,3568.4,3567.7,2.8029]
[1732868796050,2.80237,3568.5,3567.9,0.8325]
[1732868796551,2.80214,3568.7,3567.9,0.8325]
[1732868796552,2.80243,3568.4,3567.9,0.8325]
[1732868796836,2.80253,3568.3,3567.9,0.8325]
[1732868797705,2.80254,3568.2,3567.9,0.8325]
[1732868798502,2.80238,3568.4,3567.9,0.8325]
[1732868798709,2.80253,3568.2,3567.9,0.8325]
[1732868799919,2.80238,3568.4,3567.9,0.8325]
[1732868800321,2.8021,3568.8,3568.0,2.80267]
[1732868800526,2.8021,3568.8,3567.9,4.279079]
[1732868801131,2.8021,3568.8,3568.1,2.8026]
[1732868801342,2.8019,3569.0,3568.2,2.80251]
[1732868801543,2.8019,3569.0,3568.3,0.7765]
[1732868801754,2.80207,3568.8,3568.3,0.7765]
[1732868802223,2.8019,3569.0,3568.3,0.7765]
[1732868802426,5.60387,3569.0,3568.3,0.7765]
[1732868802642,2.80198,3568.9,3568.3,1.134399]
[1732868804383,2.80182,3569.1,3568.3,1.134399]
[1732868804607,2.80182,3569.1,3568.3,3.936839]
[1732868805208,0.8201,3569.2,3568.3,1.134399]
[1732868805209,2.80217,3568.7,3568.3,1.134399]
[1732868805383,2.80217,3568.7,3568.3,0.7765]
[1732868805900,2.8022,3568.7,3567.9,4.262469]
[1732868806914,2.80211,3568.8,3567.9,4.262469]
[1732868807219,2.80222,3568.6,3567.9,4.262469]
[1732868807409,2.80222,3568.6,3568.0,0.4262469]
[1732868809225,2.80221,3568.7,3568.0,3.2289069]
[1732868809573,0.8201,3569.2,3568.0,0.4262469]
[1732868809828,2.80239,3568.4,3567.9,0.8159]
[1732868810632,2.80224,3568.6,3567.9,0.8159]
[1732868811898,2.80214,3568.7,3567.9,0.8159]
[1732868812081,2.80214,3568.7,3568.0,2.80268]
[1732868814889,2.80214,3568.7,3568.1,0.8265]
[1732868815111,2.80214,3568.7,3568.1,1.469696]
[1732868815554,2.80182,3569.1,3568.1,1.469696]
[1732868815819,2.80206,3568.8,3568.1,1.469696]
[1732868817425,2.80206,3568.8,3568.1,4.272286]
[1732868817591,2.80191,3569.0,3568.2,0.85693271]
[1732868817930,2.80213,3568.8,3568.2,0.85693271]
[1732868818233,2.80199,3568.9,3568.4,0.7572]
[1732868819287,2.80183,3569.1,3568.4,0.7572]
[1732868819483,2.80202,3568.9,3568.4,0.7572]
[1732868819687,2.80216,3568.7,3568.4,0.7572]
[1732868820295,2.80198,3568.9,3568.4,0.7572]
[1732868820626,1.49429109,3569.1,3568.0,0.8294]
[1732868820924,1.75595993,3569.1,3568.0,0.8294]
[1732868821128,2.80238,3568.4,3568.0,0.8294]
[1732868821311,2.80231,3568.5,3568.0,0.8294]
[1732868821514,2.80206,3568.8,3568.1,0.363224]
[1732868821739,2.80244,3568.4,3568.0,0.8294]
[1732868821937,2.80251,3568.3,3568.0,0.8294]
[1732868823247,0.7542,3568.8,3568.0,0.8294]
[1732868823451,2.80252,3568.3,3568.0,0.8294]
[1732868825543,2.80254,3568.2,3568.0,0.8294]
[1732868825851,2.80238,3568.4,3568.0,0.8294]
[1732868826014,2.80261,3568.1,3567.5,0.789]
[1732868826209,2.80261,3568.1,3567.6,0.66128444]
[1732868827405,2.80275,3568.0,3567.6,0.66128444]
[1732868827609,2.80275,3568.0,3567.5,0.789]
[1732868829050,0.7629,3568.2,3567.5,0.789]
[1732868829051,3.56543,3568.2,3567.5,0.789]
[1732868829275,2.80287,3567.8,3567.5,0.789]
[1732868830362,2.80293,3567.7,3567.3,1.76452653]
[1732868833489,2.80293,3567.7,3567.3,0.8129]
[1732868835712,2.80277,3567.9,3567.3,0.8129]
[1732868835908,2.80277,3567.9,3567.3,2.30719109]
[1732868836199,2.80261,3568.1,3567.5,1.49429109]
[1732868836788,0.7629,3568.2,3567.5,1.49429109]
[1732868836991,2.80269,3568.0,3567.5,2.0053332]
[1732868837504,2.80277,3567.9,3567.5,0.51104211]
[1732868837702,2.80277,3567.9,3567.3,2.30719109]
[1732868838688,2.80262,3568.1,3567.3,2.30719109]
[1732868838885,2.8027,3568.0,3567.3,2.30719109]
[1732868839294,0.7629,3568.2,3567.3,2.30719109]
[1732868839295,2.80254,3568.2,3567.6,1.49429109]
[1732868839472,2.80254,3568.2,3567.7,0.816]
[1732868840223,2.80237,3568.4,3567.7,1.33013998]
[1732868840362,0.7512,3568.5,3567.8,4.29710109]
[1732868840566,3.55352,3568.5,3567.8,1.49429109]
[1732868841310,3.55352,3568.5,3567.8,4.29709109]
[1732868841504,0.7664,3568.8,3568.3,0.7831]
[1732868841664,1.1750784,3569.1,3567.7,3.0]
[1732868841878,1.76261761,3569.3,3568.6,0.7831]
[1732868841879,2.8019,3569.0,3568.6,0.7831]
[1732868842392,2.80199,3568.9,3568.6,0.7831]
[1732868844987,2.80183,3569.1,3568.1,4.29688109]
[1732868845162,2.80183,3569.1,3568.2,0.8145]
[1732868845376,2.80209,3568.8,3568.2,0.8145]
[1732868845706,2.80209,3568.8,3568.2,1.68299885]
[1732868846510,2.80193,3569.0,3568.2,4.48551885]
[1732868847169,0.55,3569.2,3568.3,1.49429109]
[1732868847370,2.80167,3569.3,3568.7,1.49429109]
[1732868847596,2.80167,3569.3,3568.6,3.61671]
[1732868848305,2.80167,3569.3,3568.6,4.40804711]
[1732868848507,3.9765984,3569.5,3568.6,1.60583711]
[1732868848803,2.80172,3569.3,3568.6,1.60583711]
[1732868849271,2.80176,3569.2,3568.6,1.60583711]
[1732868850615,2.80176,3569.2,3568.6,4.40803711]
[1732868850911,2.80167,3569.3,3568.7,0.59023282]
[1732868851066,2.80152,3569.5,3568.7,3.39236282]
[1732868851264,2.8016,3569.4,3568.7,3.39236282]
[1732868852310,0.787,3569.6,3568.9,0.8223]
[1732868852515,2.80167,3569.3,3568.9,0.8223]
[1732868853665,2.80151,3569.5,3568.9,0.8223]
[1732868854804,2.8016,3569.4,3568.9,0.8223]
[1732868855967,3.9764284,3569.8,3569.1,2.80182]
[1732868856213,2.80135,3569.8,3569.1,2.80182]
[1732868856368,2.80136,3569.7,3569.1,2.80182]
[1732868856911,2.80136,3569.7,3568.9,2.67903409]
[1732868857082,2.80136,3569.7,3568.9,5.48098409]
[1732868857409,2.80136,3569.7,3569.1,0.8143]
[1732868858300,3.61524,3569.9,3569.1,3.61609]
[1732868858616,2.80129,3569.8,3569.1,3.61609]
[1732868859382,2.80129,3569.8,3569.2,2.80172]
[1732868859789,2.80129,3569.8,3569.1,2.30859109]
[1732868859989,2.80129,3569.8,3569.2,0.91031875]
[1732868860500,2.80136,3569.7,3569.2,0.91031875]
[1732868860712,2.80119,3569.9,3569.2,3.71205875]
[1732868860895,2.80119,3569.9,3569.3,2.80166]
[1732868861633,2.80128,3569.8,3569.2,0.91031875]
[1732868861802,2.80128,3569.8,3569.3,0.60206698]
[1732868863113,2.80137,3569.7,3569.3,0.60206698]
[1732868863383,2.80137,3569.7,3569.1,5.11035109]
[1732868863580,2.80137,3569.7,3569.1,3.61606]
[1732868864034,2.80137,3569.7,3569.1,0.8143]
[1732868864195,2.80127,3569.8,3569.1,0.8143]
[1732868864395,2.80149,3569.6,3569.1,0.8143]
[1732868864607,2.80127,3569.8,3569.1,4.42716311]
[1732868864926,2.80136,3569.7,3569.1,1.62535311]
[1732868865123,5.60278,3569.7,3569.1,1.62535311]
[1732868865327,2.80147,3569.6,3569.1,1.62535311]
[1732868865521,0.8115,3570.1,3569.1,0.8143]
[1732868865522,2.80152,3569.5,3569.1,0.8143]
[1732868865699,2.80164,3569.4,3569.1,0.8143]
[1732868865916,2.80152,3569.5,3569.1,0.8143]
[1732868866313,2.8016,3569.4,3569.1,0.8143]
[1732868867029,3.62364,3569.6,3568.8,1.49429109]
[1732868867030,2.80151,3569.5,3568.8,0.8037]
[1732868867239,2.80184,3569.1,3568.8,0.8037]
[1732868867397,0.8222,3569.6,3568.8,0.8037]
[1732868867398,2.80176,3569.2,3568.8,0.8037]
[1732868868104,2.80167,3569.3,3568.8,0.8037]
[1732868868629,2.80174,3569.2,3568.8,0.8037]
[1732868869589,2.80166,3569.4,3568.8,0.8037]
[1732868869933,2.80183,3569.1,3568.8,0.8037]
[1732868871262,0.8222,3569.6,3568.8,0.8037]
[1732868871393,2.80179,3569.2,3568.6,0.7653]
[1732868871588,2.80204,3568.9,3568.6,0.7653]
[1732868872430,2.80186,3569.1,3568.6,0.7653]
[1732868872796,2.8019,3569.0,3568.6,0.7653]
[1732868873292,2.80201,3568.9,3568.6,0.7653]
[1732868874190,2.80207,3568.8,3568.6,0.7653]
[1732868874631,2.8019,3569.0,3568.6,0.7653]
[1732868876139,2.80166,3569.3,3568.6,0.7653]
[1732868876140,2.80184,3569.1,3568.7,0.356765]
[1732868877841,2.80184,3569.1,3568.6,0.7653]
[1732868878071,2.80166,3569.3,3568.6,0.7653]
[1732868878223,2.80174,3569.2,3568.6,0.7653]
[1732868878994,2.80184,3569.1,3568.6,0.7653]
[1732868879524,2.80174,3569.2,3568.6,0.7653]
[1732868879843,2.80174,3569.2,3568.6,1.27149511]
[1732868880709,2.80173,3569.3,3568.6,4.07364511]
[1732868881046,1.49429109,3569.6,3568.6,4.07364511]
[1732868881047,3.06426325,3569.2,3568.6,1.27149511]
[1732868881270,0.26249325,3569.1,3568.6,0.7653]
[1732868881547,0.26249325,3569.0,3568.6,0.7653]
[1732868881710,0.26249325,3568.9,3568.6,0.7653]
[1732868881908,2.80177,3569.2,3568.6,0.7653]
[1732868882105,0.26249422,3569.1,3568.6,0.7653]
[1732868882315,0.26249263,3569.0,3568.6,1.27148811]
[1732868882499,0.26249263,3568.9,3568.6,1.27148811]
[1732868882695,2.80177,3569.2,3568.6,1.27148811]
[1732868882920,0.26249212,3569.1,3568.6,1.27148811]
[1732868883138,0.26249212,3569.0,3568.6,1.27148811]
[1732868883336,2.80177,3569.2,3568.7,0.40737781]
[1732868883538,0.26248392,3569.1,3568.6,1.27148811]
[1732868883830,0.26248392,3569.0,3568.6,1.27148811]
[1732868884135,5.60318,3569.4,3568.6,1.27148811]
[1732868884431,2.80206,3568.8,3568.6,0.7653]
[1732868885142,2.80206,3568.8,3568.1,0.7959]
[1732868885345,1.03698354,3568.7,3568.1,0.7959]
[1732868885500,1.03698354,3568.7,3567.7,0.762]
[1732868885501,2.80259,3568.2,3567.7,0.762]
[1732868885832,2.80269,3568.0,3567.7,1.118514]
[1732868885996,2.80263,3568.1,3567.7,1.118514]
[1732868886438,2.80263,3568.1,3567.7,0.762]
[1732868887533,2.80245,3568.3,3567.7,0.762]
[1732868887738,2.80269,3568.0,3567.7,0.762]
[1732868887900,2.80269,3568.0,3567.4,0.7872]
[1732868888099,2.8029,3567.8,3567.4,0.7872]
[1732868888634,2.80296,3567.7,3567.4,0.7872]
[1732868889548,2.80291,3567.8,3567.4,0.7872]
[1732868890218,2.80292,3567.7,3567.4,0.7872]
[1732868890606,2.80308,3567.5,3567.0,0.8199]
[1732868890806,2.80308,3567.5,3567.0,1.33168211]
[1732868892110,2.80292,3567.7,3567.0,1.33168211]
[1732868892653,2.80292,3567.7,3567.0,4.13514211]
[1732868893157,2.80301,3567.6,3567.0,1.33168211]
[1732868893308,2.80301,3567.6,3567.0,0.8199]
[1732868895018,2.80285,3567.8,3567.0,0.8199]
[1732868895227,2.80292,3567.7,3567.0,3.62332]
[1732868895621,5.60591,3567.7,3567.0,3.62332]
[1732868895827,2.803,3567.6,3567.0,3.62332]
[1732868896150,2.80277,3567.9,3567.0,4.41545111]
[1732868896316,2.80286,3567.8,3567.0,4.41545111]
[1732868896516,2.80295,3567.7,3567.0,4.41545111]
[1732868896830,2.80299,3567.7,3567.0,1.61203111]
[1732868898571,2.80279,3567.9,3567.1,2.80339]
[1732868899076,2.80285,3567.8,3567.1,5.16901431]
[1732868899434,2.80242,3568.4,3567.5,1.49429109]
[1732868899735,2.80254,3568.2,3567.6,0.8309]
[1732868900834,2.80267,3568.1,3567.6,0.8309]
[1732868901743,2.80267,3568.1,3567.9,5.0]
[1732868904256,2.80246,3568.3,3567.9,5.0]
[1732868909706,2.80195,3569.0,3568.0,3.56522]
[1732868909707,2.80214,3568.7,3568.0,3.56522]
[1732868910021,0.26203174,3568.6,3568.0,0.7626]
[1732868910300,2.80223,3568.6,3568.0,3.56525]
[1732868910494,2.80223,3568.6,3568.1,1.10723552]
[1732868912410,2.80241,3568.4,3568.0,0.7626]
[1732868912704,2.80246,3568.3,3568.0,0.7626]
[1732868913365,3.61796,3568.5,3568.0,0.7626]
[1732868913692,0.26220423,3568.4,3568.0,0.7626]
[1732868914266,0.26220423,3568.4,3567.9,5.0]
[1732868914469,0.26220423,3568.3,3567.9,5.0]
[1732868914678,0.26220423,3568.2,3567.9,5.0]
[1732868914885,0.26220423,3568.4,3567.9,5.0]
[1732868915102,0.26220423,3568.3,3567.9,5.0]
[1732868915281,3.06478423,3568.2,3567.9,5.0]
[1732868915655,0.26239788,3568.1,3567.9,5.0]
[1732868916098,2.80253,3568.2,3567.9,5.0]
[1732868916504,0.26239381,3568.1,3567.9,5.0]
[1732868917266,2.80262,3568.1,3567.9,5.0]
[1732868917570,2.80252,3568.3,3567.9,5.0]
[1732868917769,0.2623983,3568.2,3567.9,5.0]
[1732868918013,0.2623983,3568.1,3567.9,5.0]
[1732868918169,0.2623983,3568.0,3567.9,5.0]
[1732868918364,0.26240622,3568.2,3567.9,5.0]
[1732868918610,3.06506622,3568.1,3567.9,5.0]
[1732868918796,2.80266,3568.1,3567.9,5.0]
[1732868918997,0.26240745,3568.0,3567.9,5.0]
[1732868919520,2.80266,3568.1,3567.9,5.0]
[1732868920999,2.80251,3568.3,3567.9,5.0]
[1732868921329,2.80251,3568.3,3567.9,5.67668252]
[1732868921330,0.26240588,3568.2,3567.9,5.67668252]
[1732868921489,2.80251,3568.3,3568.0,0.7972]
[1732868921819,0.2624284,3568.2,3568.0,0.7972]
[1732868922029,2.80251,3568.3,3568.0,0.7972]
[1732868922226,0.26243238,3568.2,3568.0,0.7972]
[1732868922396,2.8025,3568.3,3568.0,0.7972]
[1732868922599,0.26245415,3568.2,3568.0,0.7972]
[1732868922924,2.8025,3568.3,3568.0,0.7972]
[1732868923199,0.26245286,3568.2,3568.0,0.7972]
[1732868923346,2.8025,3568.3,3568.0,0.7972]
[1732868923557,0.26247844,3568.2,3568.0,0.7972]
[1732868923719,2.8025,3568.3,3568.0,0.7972]
[1732868923915,0.26247742,3568.2,3568.0,0.7972]
[1732868924247,2.8025,3568.3,3568.0,0.7972]
[1732868924548,0.26251248,3568.2,3568.0,0.7972]
[1732868924850,2.8023,3568.5,3568.0,0.7972]
[1732868925016,0.26250661,3568.4,3568.0,0.7972]
[1732868925223,0.26250661,3568.3,3568.0,0.7972]
[1732868925423,0.26250661,3568.2,3568.0,0.7972]
[1732868925730,2.80238,3568.4,3568.0,0.7972]
[1732868925934,0.26252913,3568.3,3568.0,4.17961]
[1732868926243,0.2625112,3568.2,3568.0,4.17961]
[1732868926449,0.42001811,3568.5,3568.0,4.17961]
[1732868926653,0.26254004,3568.4,3568.0,1.37692]
[1732868926805,0.26254004,3568.3,3568.2,2.80252]
[1732868927015,0.26254004,3568.3,3568.1,1.59552111]
[1732868927239,0.42010969,3568.6,3568.1,1.59552111]
[1732868927442,5.80191,3569.0,3568.1,1.59552111]
[1732868927443,0.68267899,3568.5,3568.1,1.59552111]
[1732868927624,0.2625693,3568.4,3568.1,1.59552111]
[1732868927953,2.80216,3568.7,3568.1,1.59552111]
[1732868927954,0.2625693,3568.3,3568.1,1.59552111]
[1732868928180,0.2625693,3568.2,3568.1,1.59552111]
[1732868929559,0.2625693,3568.2,3568.1,0.8084]
[1732868930464,0.26268493,3568.2,3568.1,0.8084]
[1732868930755,0.26268201,3568.2,3568.1,0.8084]
[1732868934028,2.80222,3568.6,3568.1,0.8084]
[1732868934229,0.6829751,3568.5,3568.1,0.8084]
[1732868934465,0.6829751,3568.4,3568.1,0.8084]
[1732868934646,0.26268273,3568.3,3568.1,0.8084]
[1732868934837,0.26268273,3568.2,3568.1,0.8084]
[1732868935443,0.26268273,3568.2,3568.1,1.949791]
[1732868935751,0.42029823,3568.7,3568.2,2.8025]
[1732868936058,0.68296275,3568.6,3568.2,2.8025]
[1732868936259,0.26266452,3568.5,3568.2,2.8025]
[1732868936446,0.26266452,3568.4,3568.2,2.8025]
[1732868936643,0.42023476,3568.7,3568.3,0.4752291]
[1732868936843,0.68287983,3568.6,3568.3,0.4752291]
[1732868937051,0.26264507,3568.5,3568.3,0.4752291]
[1732868937382,0.26261974,3568.4,3568.3,0.4752291]
[1732868939669,0.26261974,3568.4,3568.3,3.2776791]
[1732868939980,2.80183,3569.1,3568.5,2.80226]
[1732868940187,1.9848784,3569.2,3568.5,2.80226]
[1732868940188,0.4201177,3568.9,3568.5,1.49429109]
[1732868940374,0.4201177,3568.9,3568.7,2.80212]
[1732868940557,0.26255514,3568.8,3568.7,2.80212]
[1732868941684,2.80176,3569.2,3568.6,3.6155]
[1732868941892,3.9767184,3569.4,3568.6,3.6155]
[1732868942397,2.80164,3569.4,3568.6,3.6155]
[1732868942597,2.80164,3569.4,3568.6,4.45423902]
[1732868943406,0.68260738,3569.3,3568.6,4.45423902]
[1732868943605,0.68260738,3569.2,3568.6,4.45423902]
[1732868943764,0.2625413,3569.1,3568.6,4.45423902]
[1732868943967,0.2625413,3569.0,3568.6,4.45423902]
[1732868944206,0.2625413,3568.9,3568.7,0.7256609]
[1732868944409,0.42006608,3569.3,3568.7,0.7256609]
[1732868944579,0.26235711,3569.2,3568.7,0.7256609]
[1732868944776,0.26235711,3569.1,3568.7,3.5277709]
[1732868944977,0.26235711,3569.0,3568.7,3.5277709]
[1732868945183,0.26235711,3568.9,3568.7,3.5277709]
[1732868945381,0.42006608,3569.3,3568.7,3.5277709]
[1732868945585,0.26230345,3569.2,3568.7,3.5277709]
[1732868945798,0.26230345,3569.1,3568.7,3.5277709]
[1732868946109,0.42006608,3569.3,3568.6,3.6155]
[1732868946110,0.26230345,3569.0,3568.8,3.6658062]
[1732868946263,2.80164,3569.4,3568.8,3.6658062]
[1732868946467,0.26224666,3569.3,3568.8,2.80205]
[1732868946684,0.26224666,3569.2,3568.8,2.80205]
[1732868946882,0.26224666,3569.1,3568.8,2.80205]
[1732868947116,0.26224666,3569.0,3568.8,2.80205]
[1732868947406,3.22170608,3569.4,3568.8,2.80205]
[1732868947705,0.26221458,3569.3,3568.6,3.6155]
[1732868947902,0.26221458,3569.2,3568.7,2.80212]
[1732868948071,0.26221458,3569.1,3568.7,2.80212]
[1732868948274,0.26221458,3569.0,3568.7,2.80212]
[1732868948502,2.80164,3569.4,3568.7,2.80212]
[1732868948709,0.26220661,3569.3,3568.7,2.80212]
[1732868948920,0.26220661,3569.2,3568.7,2.80212]
[1732868949085,0.26220661,3569.1,3568.7,2.80212]
[1732868949285,0.26220661,3569.0,3568.7,3.5277648]
[1732868949810,3.22170608,3569.4,3568.7,3.5277648]
[1732868950015,0.26220407,3569.3,3568.7,2.80212]
[1732868950215,2.80196,3569.0,3568.3,3.56971]
[1732868950382,2.80215,3568.7,3568.1,3.56985]
[1732868950712,2.80215,3568.7,3568.1,0.7673]
[1732868950915,0.26222086,3568.6,3568.1,0.7673]
[1732868951104,0.26222086,3568.5,3568.0,3.56993]
[1732868951294,3.63345,3568.7,3568.0,3.56993]
[1732868951621,0.26228047,3568.6,3568.0,0.7673]
[1732868951771,0.26228047,3568.5,3568.1,2.80259]
[1732868951979,3.63345,3568.7,3568.1,2.80259]
[1732868951980,0.8313,3568.7,3568.1,2.80259]
[1732868952200,0.26227636,3568.6,3568.1,2.80259]
[1732868952503,0.26227636,3568.5,3568.1,2.80259]
[1732868952705,0.26227636,3568.4,3568.0,0.7673]
[1732868953018,2.8023,3568.5,3568.0,0.7673]
[1732868953197,0.2623209,3568.4,3568.0,0.7673]
[1732868953421,0.41955338,3568.6,3568.0,0.7673]
[1732868953623,0.26233414,3568.5,3568.0,3.56998]
[1732868953831,0.26233414,3568.4,3568.0,4.35669811]
[1732868954031,3.6335,3568.7,3568.0,4.35669811]
[1732868954200,0.26232768,3568.6,3568.0,0.7673]
[1732868954547,0.26232768,3568.5,3568.2,1.49429109]
[1732868954699,0.41955338,3568.9,3568.5,3.58528]
[1732868954903,0.26234361,3568.8,3568.5,3.58528]